bitfinex/quotes_SOLUSD_20241222
["timestamp","ask_amount","ask_price","bid_price","bid_amount"]
[1734886203951,21.5787,182.79,182.68,42.78870755]
[1734886204146,21.5787,182.79,182.69,41.96789894]
[1734886204969,21.5787,182.79,182.68,65.74478294]
[1734886205155,21.5787,182.79,182.7,65.74478294]
[1734886205361,4.6568,182.86,182.77,41.96789894]
[1734886205584,4.6568,182.86,182.79,41.96789894]
[1734886206857,24.6568,182.86,182.79,41.96789894]
[1734886207054,4.6568,182.86,182.79,41.96789894]
[1734886207259,1.6394,182.89,182.8,41.96789894]
[1734886207481,4.6568,182.9,182.83,41.96789894]
[1734886207882,1.6394,182.94,182.85,41.96789894]
[1734886208181,1.6394,182.94,182.87,41.96789894]
[1734886208398,6.2962,182.99,182.89,41.96789894]
[1734886208673,17.2262,182.99,182.87,41.96789894]
[1734886209066,0.12549,182.98,182.87,41.96789894]
[1734886210259,17.2262,182.99,182.89,41.96789894]
[1734886210260,20.0,182.96,182.89,41.96789894]
[1734886210583,20.0,182.96,182.87,41.96789894]
[1734886210759,20.0,182.94,182.84,41.96789894]
[1734886210952,20.0,182.92,182.83,41.96789894]
[1734886211164,20.0,182.92,182.81,0.8200606]
[1734886211165,0.12549,182.91,182.81,41.96789894]
[1734886211553,20.0,182.92,182.83,41.96789894]
[1734886212074,0.12549,182.91,182.82,41.96789894]
[1734886212587,0.12549,182.91,182.81,41.96789894]
[1734886212962,0.12549,182.91,182.81,42.7881359]
[1734886213386,0.12549,182.91,182.82,41.96789894]
[1734886213564,20.0,182.92,182.82,41.96789894]
[1734886214792,20.0,182.92,182.83,0.82018006]
[1734886214972,20.0,182.96,182.84,41.96789894]
[1734886215170,43.776884,182.95,182.85,41.96789894]
[1734886216079,20.0,182.95,182.84,41.96789894]
[1734886217262,0.12549,182.94,182.85,41.96789894]
[1734886217465,0.12549,182.94,182.83,23.776884]
[1734886217466,20.0,182.92,182.84,41.96789894]
[1734886217790,30.9317,182.96,182.85,42.78797806]
[1734886218085,20.0,182.96,182.88,41.96789894]
[1734886218266,6.2962,182.99,182.89,41.96789894]
[1734886218958,6.2962,182.99,182.88,41.96789894]
[1734886219667,0.12549,182.98,182.89,42.78777232]
[1734886219884,6.2962,182.99,182.89,42.78777232]
[1734886220273,6.2962,182.99,182.89,41.96789894]
[1734886221096,8.45635141,183.04,182.93,41.96789894]
[1734886221400,6.2962,183.04,182.9,41.96789894]
[1734886221601,0.12549,183.03,182.9,41.96789894]
[1734886222309,0.12549,182.99,182.9,41.96789894]
[1734886222505,20.12549,182.99,182.9,41.96789894]
[1734886222800,20.0,182.99,182.93,41.96789894]
[1734886223005,20.0,183.01,182.93,41.96789894]
[1734886223204,6.2962,183.04,182.94,41.96789894]
[1734886223507,0.12549,183.03,182.94,42.78757946]
[1734886223673,0.12549,183.03,182.93,41.96789894]
[1734886224076,6.2962,183.04,182.95,41.96789894]
[1734886224703,6.2962,183.04,182.96,42.78747164]
[1734886224875,17.1003,183.09,182.98,41.96789894]
[1734886225199,6.1765,183.09,182.99,41.96789894]
[1734886225393,0.12549,183.08,182.97,41.96789894]
[1734886225785,0.12549,183.08,182.97,42.78737431]
[1734886226207,23.902374,183.08,182.97,0.81947537]
[1734886226698,20.0,183.05,182.97,0.81947537]
[1734886227391,20.0,183.01,182.91,41.96789894]
[1734886227597,0.12549,183.0,182.9,41.96789894]
[1734886227804,0.12549,183.0,182.91,41.96789894]
[1734886228801,20.0,183.01,182.93,41.96789894]
[1734886229002,20.0,183.02,182.95,41.96789894]
[1734886229394,20.0,183.02,182.94,41.96789894]
[1734886229906,20.0,183.02,182.95,41.96789894]
[1734886231806,20.0,183.02,182.93,41.96789894]
[1734886232002,20.0,183.0,182.92,41.96789894]
[1734886232390,20.0,183.0,182.9,0.819633]
[1734886232391,0.12549,182.99,182.9,42.78753194]
[1734886232597,20.0,182.98,182.89,41.96789894]
[1734886232794,0.12549,182.95,182.87,41.96789894]
[1734886233098,0.12549,182.95,182.85,41.96789894]
[1734886233307,23.902374,182.95,182.84,41.96789894]
[1734886233618,20.0,182.92,182.84,41.96789894]
[1734886234215,20.0,182.92,182.83,41.96789894]
[1734886234401,20.0,182.92,182.81,41.96789894]
[1734886234593,20.0,182.92,182.82,41.96789894]
[1734886235605,30.9342,182.92,182.82,41.96789894]
[1734886235811,20.0,182.86,182.78,41.96789894]
[1734886236007,20.0,182.86,182.77,41.96789894]
[1734886236611,20.0,182.88,182.77,41.96789894]
[1734886236816,20.0,182.88,182.79,41.96789894]
[1734886236990,20.0,182.88,182.8,41.96789894]
[1734886237686,20.0,182.88,182.82,41.96789894]
[1734886238086,20.0,182.88,182.81,41.96789894]
[1734886238595,20.0,182.88,182.82,41.96789894]
[1734886239114,20.0,182.88,182.8,41.96789894]
[1734886240094,1.5197,182.91,182.83,41.96789894]
[1734886240300,15.5888,182.95,182.84,41.96789894]
[1734886240506,15.5888,182.95,182.85,41.96789894]
[1734886240818,15.5888,182.95,182.84,42.78802069]
[1734886241001,0.12549,182.94,182.81,41.96789894]
[1734886241200,0.12549,182.94,182.8,41.96789894]
[1734886241420,0.12549,182.94,182.81,41.96789894]
[1734886241618,0.12549,182.91,182.81,41.96789894]
[1734886241914,20.0,182.88,182.81,41.96789894]
[1734886242217,20.0,182.92,182.83,41.96789894]
[1734886242396,20.0,182.92,182.82,0.82026405]
[1734886242397,0.12549,182.91,182.82,42.78816299]
[1734886242609,20.0,182.92,182.83,42.78812202]
[1734886242791,20.0,182.92,182.84,41.96789894]
[1734886242991,4.6568,182.95,182.85,41.96789894]
[1734886243206,4.6568,182.95,182.87,41.96789894]
[1734886243796,0.12549,182.94,182.85,41.96789894]
[1734886244616,20.0,182.93,182.85,41.96789894]
[1734886245812,20.0,182.93,182.84,41.96789894]
[1734886246704,20.0,182.89,182.79,41.96789894]
[1734886247103,20.0,182.89,182.8,41.96789894]
[1734886247298,20.0,182.93,182.81,41.96789894]
[1734886247501,20.0,182.93,182.83,41.96789894]
[1734886247901,20.0,182.93,182.84,41.96789894]
[1734886248094,20.0,182.93,182.83,41.96789894]
[1734886248295,20.12549,182.92,182.83,41.96789894]
[1734886249705,20.0,182.92,182.84,41.96789894]
[1734886250423,20.0,182.92,182.83,41.96789894]
[1734886252014,20.0,182.92,182.85,41.96789894]
[1734886252200,4.6568,182.95,182.86,41.96789894]
[1734886252402,0.12549,182.94,182.86,41.96789894]
[1734886252604,1.5197,182.96,182.87,42.78793104]
[1734886253003,4.6568,182.99,182.91,41.96789894]
[1734886254024,1.5943,183.0,182.93,41.96789894]
[1734886254224,4.6568,183.04,182.94,42.78755524]
[1734886254530,4.6568,183.04,182.95,41.96789894]
[1734886254841,0.12549,183.03,182.95,41.96789894]
[1734886255220,4.6568,183.04,182.95,41.96789894]
[1734886255423,4.6568,183.04,182.96,42.78754701]
[1734886255626,4.6568,183.04,182.95,41.96789894]
[1734886255809,4.6568,183.04,182.97,41.96789894]
[1734886256012,1.5943,183.1,183.0,41.96789894]
[1734886256214,4.6568,183.12,183.03,41.96789894]
[1734886256710,4.6568,183.12,183.01,42.78731665]
[1734886256927,0.12549,183.11,183.0,41.96789894]
[1734886257426,20.12549,183.11,183.0,41.96789894]
[1734886257608,20.12549,183.11,183.01,41.96789894]
[1734886258327,20.12549,183.11,183.0,41.96789894]
[1734886258626,20.12549,183.11,183.01,41.96789894]
[1734886260439,20.0,183.07,182.99,41.96789894]
[1734886260643,20.0,183.07,182.98,41.96789894]
[1734886260942,4.6568,183.12,183.02,41.96789894]
[1734886261102,20.0,183.11,183.01,41.96789894]
[1734886261301,20.0,183.11,183.02,41.96789894]
[1734886262528,20.0,183.11,183.03,42.78721707]
[1734886262708,20.0,183.11,183.06,41.96789894]
[1734886263125,20.0,183.13,183.05,41.96789894]
[1734886263326,6.2511,183.16,183.06,41.96789894]
[1734886264149,6.2511,183.16,183.08,41.96789894]
[1734886264949,6.2511,183.16,183.09,41.96789894]
[1734886265258,6.1834,183.21,183.11,41.96789894]
[1734886265553,6.1834,183.21,183.06,41.96789894]
[1734886265554,10.9174,183.2,183.08,41.96789894]
[1734886266247,10.9174,183.2,183.07,41.96789894]
[1734886266424,20.0,183.17,183.07,41.96789894]
[1734886266834,20.0,183.17,183.06,41.96789894]
[1734886267038,10.9187,183.18,183.04,41.96789894]
[1734886267039,0.12549,183.13,183.04,41.96789894]
[1734886267253,20.12549,183.1,183.0,41.96789894]
[1734886267433,20.0,183.08,182.99,41.96789894]
[1734886267737,20.0,183.08,183.0,41.96789894]
[1734886267921,0.12549,183.07,182.99,41.96789894]
[1734886268309,0.12549,183.07,182.98,41.96789894]
[1734886268523,0.12549,183.07,182.95,41.96789894]
[1734886268737,20.0,183.04,182.95,41.96789894]
[1734886268934,20.0,183.04,182.98,41.96789894]
[1734886269236,20.0,183.07,183.0,41.96789894]
[1734886269437,20.0,183.07,182.98,41.96789894]
[1734886269944,20.0,183.07,183.0,41.96789894]
[1734886270120,20.0,183.07,182.99,41.96789894]
[1734886270438,20.0,183.07,182.98,41.96789894]
[1734886270622,20.0,183.07,182.99,41.96789894]
[1734886271217,20.2729444,183.07,182.99,41.96789894]
[1734886271431,20.0,183.05,182.97,41.96789894]
[1734886271740,20.0,183.05,182.98,41.96789894]
[1734886272041,20.0,183.05,182.97,41.96789894]
[1734886272430,20.0,183.05,182.96,41.96789894]
[1734886272634,20.0,183.01,182.89,14.48872196]
[1734886272831,20.0,183.01,182.91,41.96789894]
[1734886273032,20.0,183.01,182.89,14.48872196]
[1734886273033,23.902374,183.0,182.89,42.7875209]
[1734886273247,20.0,182.97,182.88,41.96789894]
[1734886273553,20.0,182.97,182.87,41.96789894]
[1734886273714,0.12549,182.96,182.86,41.96789894]
[1734886273918,20.0,182.93,182.84,41.96789894]
[1734886274548,0.12549,182.92,182.83,41.96789894]
[1734886274762,20.12549,182.92,182.82,41.96789894]
[1734886275268,20.0,182.92,182.84,41.96789894]
[1734886275562,23.776884,182.96,182.85,41.96789894]
[1734886275563,20.0,182.93,182.85,41.96789894]
[1734886276321,6.89047407,183.0,182.89,41.96789894]
[1734886276322,4.6568,183.0,182.89,41.96789894]
[1734886276561,4.6568,183.0,182.92,41.96789894]
[1734886276921,4.6568,183.0,182.9,41.96789894]
[1734886277122,4.6568,183.0,182.89,41.96789894]
[1734886277648,4.6568,183.0,182.91,41.96789894]
[1734886277840,11.1981444,183.07,182.92,41.96789894]
[1734886278043,4.6568,183.05,182.92,42.78768069]
[1734886278243,4.6568,183.05,182.93,41.96789894]
[1734886279135,0.12549,183.04,182.92,41.96789894]
[1734886279335,0.12549,183.04,182.91,42.78763922]
[1734886279541,23.902374,183.04,182.91,0.81974028]
[1734886279959,20.0,183.01,182.91,42.78763922]
[1734886282150,20.0,182.97,182.91,0.81974028]
[1734886282353,20.0,182.97,182.9,0.81988547]
[1734886282764,20.0,182.97,182.89,41.96789894]
[1734886282936,20.0,183.0,182.91,41.96789894]
[1734886283136,11.1981444,183.07,182.93,41.96789894]
[1734886283336,23.776884,183.04,182.93,41.96789894]
[1734886283835,0.12549,183.03,182.92,42.78766731]
[1734886284659,20.0,183.01,182.92,42.78766731]
[1734886285491,20.0,183.01,182.92,0.81976837]
[1734886286091,20.0,183.01,182.92,42.78766731]
[1734886287899,20.0,183.01,182.93,41.96789894]
[1734886288772,20.0,183.02,182.95,41.96789894]
[1734886288996,0.2729444,183.04,183.02,23.776884]
[1734886289206,8.54051441,183.15,183.06,20.0]
[1734886289388,8.54051441,183.15,183.12,41.96789894]
[1734886290513,4.6568,183.21,183.12,41.96789894]
[1734886290678,20.0,183.19,183.12,41.96789894]
[1734886291497,4.6568,183.21,183.14,41.96789894]
[1734886292405,0.12549,183.2,183.14,41.96789894]
[1734886292708,20.0,183.19,183.14,41.96789894]
[1734886293483,20.0,183.2,183.14,41.96789894]
[1734886295900,0.12549,183.19,183.14,41.96789894]
[1734886296101,0.6868931,183.23,183.14,41.96789894]
[1734886296294,0.6868931,183.23,183.17,41.96789894]
[1734886296484,0.6868931,183.23,183.18,41.96789894]
[1734886297309,0.6868931,183.23,183.19,41.96789894]
[1734886299025,0.6868931,183.23,183.2,41.96789894]
[1734886299184,0.6868931,183.23,183.21,41.96789894]
[1734886299388,0.6868931,183.23,183.22,41.96789894]
[1734886299803,0.6868931,183.23,183.21,41.96789894]
[1734886300401,0.6868931,183.23,183.22,41.96789894]
[1734886300603,0.6868931,183.23,183.21,41.96789894]
[1734886300840,0.6868931,183.23,183.2,41.96789894]
[1734886301003,0.6868931,183.23,183.11,6.1214]
[1734886301197,0.12549,183.22,183.16,41.96789894]
[1734886301434,0.12549,183.22,183.15,41.96789894]
[1734886301805,0.6868931,183.23,183.15,41.96789894]
[1734886302008,0.6868931,183.23,183.21,41.96789894]
[1734886302238,0.6868931,183.23,183.22,41.96789894]
[1734886302452,0.6868931,183.23,183.21,41.96789894]
[1734886302736,0.6868931,183.23,183.2,41.96789894]
[1734886302921,0.6868931,183.23,183.19,41.96789894]
[1734886303921,0.6868931,183.23,183.2,41.96789894]
[1734886304921,0.6868931,183.23,183.21,41.96789894]
[1734886305128,0.6868931,183.23,183.22,41.96789894]
[1734886305547,0.6868931,183.23,183.22,65.74478294]
[1734886307452,0.6868931,183.23,183.22,72.07118294]
[1734886307654,0.6868931,183.23,183.22,72.88946931]
[1734886308041,0.6868931,183.23,183.22,73.01495931]
[1734886308257,0.6868931,183.23,183.22,114.98285825]
[1734886308550,0.6868931,183.23,183.22,114.16457188]
[1734886309852,0.6868931,183.23,183.22,72.19667294]
[1734886310053,0.6868931,183.23,183.22,73.01494721]
[1734886311556,0.6868931,183.23,183.22,72.88945721]
[1734886312765,0.6868931,183.23,183.22,41.96789894]
[1734886314844,0.6868931,183.23,183.22,65.74478294]
[1734886318143,0.6868931,183.23,183.22,49.53363705]
[1734886319176,0.6868931,183.23,183.22,50.35194385]
[1734886321877,0.6868931,183.23,183.22,25.75675305]
[1734886322041,0.6868931,183.23,183.15,15.2132]
[1734886322242,0.6868931,183.23,183.17,25.75675305]
[1734886322468,0.6868931,183.23,183.16,25.75675305]
[1734886322685,0.6868931,183.23,183.17,25.75675305]
[1734886322859,0.6868931,183.23,183.18,25.75675305]
[1734886323251,0.6868931,183.23,183.17,25.75675305]
[1734886323456,0.6868931,183.23,183.18,25.75675305]
[1734886324074,0.6868931,183.23,183.17,49.53363705]
[1734886324280,0.6868931,183.23,183.18,65.65672306]
[1734886325074,0.6868931,183.23,183.17,65.65672306]
[1734886325375,0.6868931,183.23,183.18,41.87983906]
[1734886326472,0.6868931,183.23,183.16,65.65672306]
[1734886326875,0.12549,183.22,183.13,41.87983906]
[1734886327377,0.12549,183.22,183.14,41.87983906]
[1734886327568,20.6868931,183.23,183.16,41.87983906]
[1734886327995,0.6868931,183.23,183.19,41.87983906]
[1734886328205,0.6868931,183.23,183.18,41.87983906]
[1734886328356,0.6868931,183.23,183.18,23.776884]
[1734886328671,0.6868931,183.23,183.19,41.87983906]
[1734886329269,0.6868931,183.23,183.2,23.776884]
[1734886329474,0.6868931,183.23,183.19,41.87983906]
[1734886329779,0.6868931,183.23,183.18,65.65672306]
[1734886329982,0.6868931,183.23,183.18,41.87983906]
[1734886330164,0.6868931,183.23,183.19,23.776884]
[1734886330684,0.6868931,183.23,183.17,23.776884]
[1734886331683,0.6868931,183.23,183.17,65.65672306]
[1734886331875,0.6868931,183.23,183.17,23.776884]
[1734886332588,0.6868931,183.23,183.16,41.87983906]
[1734886332589,0.12549,183.22,183.16,41.87983906]
[1734886332759,0.12549,183.22,183.1,41.87983906]
[1734886332962,0.12549,183.2,183.09,0.8188828]
[1734886333703,0.12549,183.2,183.09,42.69872186]
[1734886334067,20.0,183.2,183.11,41.87983906]
[1734886334272,20.0,183.2,183.12,42.69865896]
[1734886334480,20.0,183.2,183.13,23.776884]
[1734886334686,20.0,183.2,183.12,23.776884]
[1734886335359,1.5287,183.21,183.13,41.87983906]
[1734886335787,1.5287,183.21,183.12,65.65672306]
[1734886336165,1.5287,183.21,183.13,41.87983906]
[1734886336566,1.5287,183.21,183.12,65.65672306]
[1734886337483,1.5287,183.21,183.13,41.87983906]
[1734886338191,1.5287,183.21,183.12,66.47554227]
[1734886339189,0.12549,183.2,183.09,42.69870719]
[1734886339389,0.12549,183.2,183.1,65.65672306]
[1734886340491,20.0,183.19,183.1,65.65672306]
[1734886340791,1.5287,183.21,183.12,65.65672306]
[1734886341775,20.0,183.22,183.15,41.87983906]
[1734886341975,0.6868931,183.23,183.18,41.87983906]
[1734886342283,0.6868931,183.23,183.22,65.65672306]
[1734886342597,0.6868931,183.23,183.22,66.47512095]
[1734886342777,0.6868931,183.23,183.22,23.776884]
[1734886344189,0.6868931,183.23,183.22,65.65672306]
[1734886345468,9.31e-05,183.23,183.22,182.26205212]
[1734886345688,8.48740115,183.37,183.3,20.0]
[1734886345974,8.48740115,183.37,183.32,41.87983906]
[1734886346174,8.48740115,183.37,183.32,49.50956428]
[1734886346874,1.5201,183.4,183.32,23.776884]
[1734886347074,20.12549,183.39,183.32,23.776884]
[1734886347274,20.12549,183.39,183.31,23.776884]
[1734886347672,0.12549,183.39,183.31,23.776884]
[1734886347873,0.12549,183.39,183.31,49.50956428]
[1734886348732,0.12549,183.39,183.32,25.73268028]
[1734886348871,0.12549,183.39,183.33,25.73268028]
[1734886349398,0.12549,183.39,183.31,24.59488589]
[1734886349704,20.12549,183.39,183.31,25.73268028]
[1734886349877,20.12549,183.39,183.32,25.73268028]
[1734886350496,20.12549,183.39,183.32,23.776884]
[1734886350894,20.12549,183.39,183.31,25.73268028]
[1734886351093,20.12549,183.39,183.3,25.73268028]
[1734886352381,31.03129,183.39,183.28,25.73268028]
[1734886353011,20.0,183.35,183.26,25.73268028]
[1734886353732,20.0,183.36,183.3,25.73268028]
[1734886354132,20.0,183.39,183.3,25.73268028]
[1734886354334,20.0,183.39,183.31,25.73268028]
[1734886355230,4.6569,183.43,183.34,25.73268028]
[1734886355527,4.6569,183.43,183.35,25.73268028]
[1734886355733,4.6569,183.43,183.34,25.73268028]
[1734886356208,4.6569,183.43,183.33,49.50956428]
[1734886356634,20.0,183.4,183.33,49.50956428]
[1734886356833,20.0,183.4,183.33,23.776884]
[1734886357133,0.12549,183.39,183.32,25.73268028]
[1734886357321,20.12549,183.39,183.31,25.73268028]
[1734886358521,20.12549,183.39,183.32,25.73268028]
[1734886358933,20.0,183.39,183.33,25.73268028]
[1734886359238,20.0,183.4,183.35,25.73268028]
[1734886359431,4.6569,183.43,183.35,25.73268028]
[1734886360020,4.6569,183.43,183.36,25.73268028]
[1734886360819,1.5201,183.44,183.36,25.73268028]
[1734886362626,21.5201,183.44,183.36,25.73268028]
[1734886363122,21.5201,183.44,183.37,23.776884]
[1734886363519,21.5201,183.44,183.37,49.50956428]
[1734886363927,21.5201,183.44,183.37,23.776884]
[1734886365046,21.5201,183.44,183.37,49.50956428]
[1734886365532,20.0,183.44,183.37,49.50956428]
[1734886367248,20.0,183.45,183.37,49.50956428]
[1734886368545,1.5872,183.48,183.39,23.776884]
[1734886368748,1.5872,183.48,183.38,25.73268028]
[1734886369047,1.5872,183.48,183.38,23.776884]
[1734886370058,20.0,183.46,183.37,25.73268028]
[1734886370347,20.0,183.46,183.39,23.776884]
[1734886370851,20.0,183.47,183.39,23.776884]
[1734886371548,20.0,183.45,183.38,23.776884]
[1734886373748,20.0,183.45,183.36,25.73268028]
[1734886373930,1.5872,183.48,183.34,25.73268028]
[1734886375149,1.5872,183.48,183.35,23.776884]
[1734886375347,1.5872,183.48,183.36,25.73268028]
[1734886375646,10.9031,183.44,183.36,25.73268028]
[1734886375848,1.5872,183.48,183.36,25.73268028]
[1734886376050,20.0,183.44,183.36,25.73268028]
[1734886376240,20.0,183.44,183.37,23.776884]
[1734886376644,20.0,183.44,183.37,49.50956428]
[1734886377243,20.0,183.44,183.36,23.776884]
[1734886377953,20.12549,183.4,183.31,1.6406]
[1734886378150,20.12549,183.4,183.3,25.73268028]
[1734886379453,20.6868931,183.41,183.34,23.776884]
[1734886379831,0.12549,183.4,183.31,26.55068896]
[1734886380033,0.12549,183.4,183.32,23.776884]
[1734886380232,20.0,183.39,183.31,0.81800868]
[1734886380446,0.12549,183.38,183.3,23.776884]
[1734886380944,0.12549,183.37,183.28,16.9027111]
[1734886381139,20.12549,183.37,183.28,0.81801283]
[1734886381559,20.0,183.35,183.28,16.08469827]
[1734886381748,20.0,183.35,183.29,0.81816532]
[1734886382158,1.5872,183.38,183.31,25.73632152]
[1734886382361,0.6868931,183.41,183.33,49.51320552]
[1734886384770,0.6868931,183.41,183.34,25.73632152]
[1734886384961,0.6868931,183.41,183.35,23.776884]
[1734886386775,0.6868931,183.41,183.34,23.776884]
[1734886387366,20.0,183.4,183.32,23.776884]
[1734886387579,20.0,183.4,183.3,26.55426405]
[1734886387988,20.0,183.4,183.31,25.73632152]
[1734886388279,20.0,183.4,183.32,0.81795832]
[1734886388481,20.0,183.4,183.31,25.73632152]
[1734886388652,20.0,183.4,183.3,25.73632152]
[1734886388859,20.0,183.4,183.31,0.81799501]
[1734886389248,20.0,183.4,183.32,23.776884]
[1734886390199,0.12549,183.4,183.32,23.776884]
[1734886390403,20.12549,183.4,183.32,23.776884]
[1734886391184,20.12549,183.4,183.31,0.81799501]
[1734886391385,20.12549,183.4,183.29,25.73632152]
[1734886391793,20.12549,183.4,183.31,23.776884]
[1734886392206,0.6868931,183.41,183.34,25.73632152]
[1734886392499,0.6868931,183.41,183.35,0.81784727]
[1734886392683,0.6868931,183.41,183.32,26.55416879]
[1734886392888,0.12549,183.4,183.31,25.73632152]
[1734886393204,0.6868931,183.41,183.33,49.51320552]
[1734886393604,20.0,183.4,183.33,49.51320552]
[1734886393981,0.6868931,183.41,183.33,23.776884]
[1734886394180,20.0,183.4,183.33,23.776884]
[1734886394582,0.12549,183.39,183.31,25.73632152]
[1734886394803,0.12549,183.39,183.31,23.776884]
[1734886394985,20.0,183.4,183.31,23.776884]
[1734886395186,20.0,183.4,183.31,49.51320552]
[1734886395393,20.0,183.4,183.31,50.33115744]
[1734886395799,20.0,183.4,183.32,25.73632152]
[1734886396310,20.0,183.4,183.33,23.776884]
[1734886396507,0.6868931,183.41,183.33,24.59482098]
[1734886396805,0.6868931,183.41,183.33,23.776884]
[1734886398709,0.12549,183.4,183.32,0.81794045]
[1734886399013,0.12549,183.38,183.29,0.81798472]
[1734886399190,0.12549,183.36,183.28,25.73632152]
[1734886399391,0.12549,183.36,183.27,26.55444925]
[1734886399599,0.12549,183.36,183.25,25.73632152]
[1734886399804,0.12549,183.36,183.24,25.73632152]
[1734886400006,0.12549,183.32,183.23,26.55451383]
[1734886400204,0.12549,183.32,183.23,0.81819231]
[1734886400392,0.12549,183.3,183.21,25.73632152]
[1734886400803,0.12549,183.3,183.2,26.55472836]
[1734886400987,20.0,183.28,183.2,26.55472836]
[1734886401403,1.36585154,183.27,183.2,26.55472836]
[1734886401803,1.36585154,183.26,183.2,26.55472836]
[1734886402520,1.36585154,183.25,183.2,26.55472836]
[1734886403012,1.36585154,183.25,183.22,25.73632152]
[1734886403215,1.36585154,183.24,183.23,50.33164841]
[1734886403425,1.36585154,183.24,183.23,24.59532689]
[1734886404120,1.36585154,183.24,183.21,20.0]
[1734886404323,6.199,183.31,183.21,0.81849849]
[1734886404825,1.36588618,183.3,183.21,0.81849849]
[1734886405320,1.36588618,183.3,183.21,46.55482001]
[1734886405520,1.36588618,183.29,183.21,46.55482001]
[1734886405892,1.36588618,183.28,183.21,46.55482001]
[1734886406515,1.36588618,183.27,183.21,46.55482001]
[1734886407215,1.36588618,183.26,183.21,46.55482001]
[1734886407514,1.36588618,183.25,183.21,46.55482001]
[1734886407700,1.36588618,183.25,183.21,0.81849849]
[1734886408103,1.36588618,183.25,183.21,26.55482001]
[1734886408328,1.36588618,183.24,183.21,26.55482001]
[1734886408697,1.36588618,183.3,183.22,49.51320552]
[1734886408998,1.36588618,183.3,183.23,0.81834869]
[1734886409197,1.36588618,183.29,183.23,0.81834869]
[1734886409824,1.36588618,183.28,183.23,0.81834869]
[1734886410398,1.36588618,183.27,183.23,0.81834869]
[1734886410823,1.36588618,183.26,183.23,0.81834869]
[1734886411523,1.36588618,183.25,183.23,0.81834869]
[1734886412128,6.199,183.31,183.23,0.81834869]
[1734886412303,6.199,183.31,183.22,23.776884]
[1734886412798,1.36583084,183.3,183.22,23.776884]
[1734886413013,1.36583084,183.3,183.23,0.81836145]
[1734886413410,1.36583084,183.29,183.23,0.81836145]
[1734886413803,1.36583084,183.29,183.22,23.776884]
[1734886413999,0.12549,183.27,183.21,0.818411]
[1734886414214,0.12549,183.27,183.19,16.10001479]
[1734886414716,1.36583084,183.26,183.18,16.91849249]
[1734886415042,1.36583084,183.26,183.18,0.8184777]
[1734886415201,1.36583084,183.25,183.19,16.10001479]
[1734886415523,1.36583084,183.25,183.21,39.87689879]
[1734886415727,1.36583084,183.25,183.22,0.8183877]
[1734886415919,1.36583084,183.3,183.22,16.91840249]
[1734886416524,1.36583084,183.29,183.22,16.91840249]
[1734886416926,1.36583084,183.29,183.22,0.8183877]
[1734886417107,1.36583084,183.28,183.22,0.8183877]
[1734886417304,1.36583084,183.28,183.23,39.87689879]
[1734886417514,1.36583084,183.28,183.23,40.69525067]
[1734886417727,1.36583084,183.27,183.23,40.69525067]
[1734886417899,1.36583084,183.27,183.23,24.59523588]
[1734886418307,1.36583084,183.26,183.23,24.59523588]
[1734886418753,1.36583084,183.26,183.23,23.776884]
[1734886418913,1.36583084,183.3,183.23,23.776884]
[1734886419441,1.36583084,183.29,183.23,23.776884]
[1734886420059,1.36583084,183.28,183.23,23.776884]
[1734886420646,1.36583084,183.27,183.23,23.776884]
[1734886421140,1.36583084,183.26,183.23,23.776884]
[1734886421645,1.36583084,183.25,183.23,23.776884]
[1734886422347,6.199,183.31,183.23,23.776884]
[1734886422973,0.12549,183.29,183.21,16.10001479]
[1734886423245,0.12549,183.29,183.2,40.69537687]
[1734886423544,0.12549,183.27,183.18,16.10001479]
[1734886423945,1.36577336,183.26,183.18,16.10001479]
[1734886424154,0.12549,183.25,183.13,8.0478]
[1734886424443,0.12549,183.23,183.11,16.10001479]
[1734886425036,0.12549,183.23,183.1,16.10001479]
[1734886425037,0.12549,183.19,183.1,16.10001479]
[1734886425345,0.12549,183.19,183.07,16.10001479]
[1734886425716,0.12549,183.17,183.04,7.06709727]
[1734886425919,0.12549,183.17,183.08,16.10001479]
[1734886426140,0.12549,183.17,183.09,16.10001479]
[1734886426347,0.12549,183.17,183.08,16.10001479]
[1734886426521,1.36577336,183.16,183.08,16.10001479]
[1734886426915,1.36577336,183.15,183.09,16.91909426]